[Event "FIDE WSTC Open 50 2025"]
[Site "Prague"]
[Date "2025.02.25"]
[Round "8.29"]
[White "Van der Werf, Mark"]
[Black "Plotkin, Victor"]
[Result "1/2-1/2"]
[Annotator "TA"]
[ECO "D35"]
[WhiteElo "2416"]
[BlackElo "2259"]
[PlyCount "107"]
[EventDate "2025.02.17"]
[EventType "team-tourn"]
[EventCountry "CZE"]
[SourceTitle "playchess.com"]
[Source "ChessBase"]
[SourceQuality "1"]
[TimeControl "40/5400+30:1800+30"]

{[%evp 11,107,8,29,0,0,4,14,-15,0,0,0,-12,19,10,0,-18,3,-16,-14,-10,-18,-14,11,-23,-17,-16,-18,-8,0,-22,0,-24,-27,-26,-12,-27,-16,-19,-27,-27,0,0,0,0,0,-29,-4,-9,-12,-10,9,-51,7,-25,-28,-18,-29,-162,-164,-191,-114,-185,-39,-66,41,11,37,-123,-125,-212,-210,-208,-189,-125,-78,-82,-75,-174,-166,-273,-258,-256,-66,-66,-66,-67,-66,-66,-66,-73,-73,-77,-75,-75,-73,-90,-75,-75]} 1. d4 {[%emt 0:00:05]} d5 {[%emt 0:00:05]} 2. c4 {[%emt 0:00:04]} e6 {[%emt 0:00:08]} 3. Nc3 {[%emt 0:00:04]} Nf6 {[%emt 0:00:08]} 4. cxd5 {[%emt 0:00:05]} exd5 {[%emt 0:00:20]} 5. Bg5 {[%emt 0:00:10]} c6 {[%emt 0:00:17]} 6. e3 {[%emt 0:00:06]} Bf5 {[%emt 0:03:17] 6...h6 is setting a new trend.} 7. Nge2 {[%emt 0:00:54] D35: Queen's Gambit Declined: Exchange Variation.} h6 {[%emt 0:00:47]} 8. Bf4 {[%emt 0:01:47]} Nbd7 {[%emt 0:01:13]} 9. h4 $146 {[%emt 0:07:23] The position is equal.} ({Predecessor:} 9. Ng3 Bh7 10. h4 Bb4 11. Bd3 Bxd3 12. Qxd3 O-O 13. f3 Re8 14. a3 Bf8 15. Kf2 {0-1 Caruana,F (2804)-Dominguez Perez,L (2749) American Cup Elim rapid 2024 (2.1)}) 9... Qb6 {[%emt 0:08:49]} 10. Qd2 {[%emt 0:01:01]} Nh5 {[%emt 0:12:59]} 11. Bh2 {[%emt 0:01:00]} Be7 {[%emt 0:01:54][%cal Ob6d8]} 12. f3 {[%emt 0:06:51]} (12. O-O-O {feels hotter.} Qb4 13. f3 Nb6 14. Nb1) 12... Bh7 {[%emt 0:02:51]} (12... Bxh4+ $6 13. g3 $16) 13. Bg1 {[%emt 0:15:30]} Bd6 {[%emt 0:04:25]} 14. Bf2 {[%emt 0:00:31]} f5 {[%emt 0:02:22]} 15. Nf4 {[%emt 0:02:32]} Nxf4 {[%emt 0:01:29]} 16. exf4 {[%emt 0:00:06]} O-O-O {[%emt 0:08:04]} 17. O-O-O {[%emt 0:01:13]} Qc7 {[%emt 0:01:00]} 18. g3 {[%emt 0:00:28]} Nb6 {[%emt 0:01:56] Inhibits Na4.} 19. Bd3 {[%emt 0:05:11]} h5 {[%emt 0:08:34]} 20. b3 {[%emt 0:02:26]} g6 {[%emt 0:02:44]} 21. Kb2 {[%emt 0:01:33]} Kb8 {[%emt 0:01:42]} 22. Rc1 {[%emt 0:09:30][%cal Oc3b5]} Qg7 {[%emt 0:02:12]} 23. Kb1 {[%emt 0:03:02]} Rhe8 {[%emt 0:00:17]} 24. a4 {[%emt 0:01:06]} Bb4 {[%emt 0:03:12]} 25. Qc2 {[%emt 0:02:04]} Bg8 {[%emt 0:02:17]} 26. Na2 {[%emt 0:03:01][%cal Bc3a2,Ba2c1,Bc1d3,Bd3e5][%mdl 32]} Ba3 {[%emt 0:04:27]} 27. Rcd1 {[%emt 0:03:34] and a5 should not be overlooked} Bd6 {[%emt 0:03:42]} 28. Bf1 {[%emt 0:05:21]} Nd7 {[%emt 0:04:00]} 29. Nc1 {[%emt 0:00:49]} Rc8 {[%emt 0:02:50]} 30. Nd3 {[%emt 0:00:50]} Ka8 {[%emt 0:02:30]} 31. Ka2 {[%emt 0:02:01]} (31. Ne5 $11) 31... Rc7 {[%emt 0:01:08]} (31... c5 $15) 32. Ne5 {[%emt 0:05:13]} Rec8 {[%emt 0:00:53]} 33. Qb2 {[%emt 0:05:52]} c5 {[%emt 0:02:09]} 34. Rc1 {[%emt 0:03:01]} (34. Nxd7 $11 Qxd7 35. Bb5) 34... c4 $19 {[%emt 0:03:27]} 35. b4 {[%emt 0:00:11][%cal Bb3b4,Bb4b5][%mdl 32]} Bf7 {[%emt 0:02:49]} ({Black should play} 35... Qe7 $19 36. b5 (36. Nxg6 $2 Qe8 $19) 36... c3) 36. Be1 {[%emt 0:01:05]} (36. Qc3 $17 {was necessary.}) 36... Be8 {[%emt 0:00:57]} (36... Nxe5 $19 37. fxe5 Be7) 37. b5 $15 {[%emt 0:06:07]} Nxe5 {[%emt 0:03:31]} (37... Bf8 $15) 38. fxe5 $14 {[%emt 0:00:25] White has a king side majority. NOTEXT-51077 White (e5)} Bf8 {[%emt 0:00:20]} 39. Ba5 $2 {[%emt 0:01:16]} (39. f4 $14) 39... b6 $36 {[%emt 0:00:44][%mdl 2048] White is under strong pressure.} 40. Bc3 {[%emt 0:02:40] [#]} (40. Bb4 $17) 40... a6 $1 $19 {[%emt 0:01:04][%mdl 512]} 41. Ra1 {[%emt 0:30:33]} axb5 {[%emt 0:04:27]} 42. axb5 {[%emt 0:00:00]} Qd7 {[%emt 0:01:05]} (42... Ra7+ $142 $1 43. Kb1 Rcc7) 43. Kb1+ $17 {[%emt 0:00:00]} Ra7 {[%emt 0:02:23]} 44. Rh2 {[%emt 0:00:00] [#]} (44. Rxa7+ $17 Qxa7 45. Bb4 Bxb4 (45... Bxb5 $2 46. Bxf8 Qa4 47. Bh6 $18) 46. Qxb4) 44... Rcc7 $1 $19 {[%emt 0:02:05]} ({Worse is} 44... Qxb5 45. Qxb5 Bxb5 46. Rb2 $11) 45. Rxa7+ {[%emt 0:00:00]} (45. Ra6 $142) 45... Rxa7 {[%emt 0:00:09]} 46. Bb4 {[%emt 0:00:00] [#]} Bxb4 {[%emt 0:02:19]} (46... Be7 $1 $19 {...Ra4 would now be deadly.} 47. f4 Kb8 (47... Qxb5 48. Bxe7 Qa4 49. Rc2 $15)) 47. Qxb4 $15 {[%emt 0:00:00]} Ra5 {[%emt 0:02:46]} 48. Ra2 {[%emt 0:00:00]} Qxb5 {[%emt 0:07:59]} 49. Qxb5 {[%emt 0:00:00]} Bxb5 {[%emt 0:00:10]} 50. Rxa5+ {[%emt 0:00:00]} bxa5 {[%emt 0:00:03] KB-KB. Black is a pawn up. Black is better.} 51. Be2 {[%emt 0:00:00]} Bd7 {[%emt 0:01:37]} 52. Kb2 {[%emt 0:00:00]} Kb7 {[%emt 0:00:11]} 53. Kc3 {[%emt 0:00:00]} Kc7 {[%emt 0:00:35]} 54. Bd1 {[%emt 0:00:00] Black had all chances to win.   Weighted Error Value: White=0.28 (precise) /Black=0.24 (precise)   Missed win:     	---       	Black=1      Mistake:       	White=7     	Black=5      Inaccurate:     	White=5     	Black=2      OK:         	White=15    	Black=17     Best:        	White=3     	Black=3      Strong:       	---       	Black=1      Brilliant:      	---       	Black=1} 1/2-1/2

[Event "FIDE WSTC Open 50 2025"]
[Site "Prague"]
[Date "2025.02.25"]
[Round "8.30"]
[White "Cummings, David H."]
[Black "Van Haastert, Edwin"]
[Result "1/2-1/2"]
[Annotator "TA"]
[ECO "A06"]
[WhiteElo "2255"]
[BlackElo "2408"]
[PlyCount "85"]
[EventDate "2025.02.17"]
[EventType "team-tourn"]
[EventCountry "CZE"]
[SourceTitle "playchess.com"]
[Source "ChessBase"]
[SourceQuality "1"]
[TimeControl "40/5400+30:1800+30"]

{[%evp 15,85,4,9,3,0,0,13,2,14,23,142,72,59,42,207,0,175,-27,31,24,28,31,26,-16,-30,-92,-97,-81,-41,-68,-64,-115,-109,-127,-112,-136,-140,-173,-148,-190,-145,-175,-172,-207,-215,-260,-229,-270,-260,-229,-222,-235,-213,-330,-264,-224,-127,-145,-83,-81,-80,-78,-20,-21,0,-433,0,0,0,0,0,-10]} 1. Nf3 {[%emt 0:00:09]} d5 {[%emt 0:01:15]} 2. e3 {[%emt 0:00:23]} Nf6 {[%emt 0:00:24]} 3. c4 {[%emt 0:00:17]} dxc4 {[%emt 0:01:01]} 4. Bxc4 {[%emt 0:00:10]} e6 {[%emt 0:00:05]} 5. O-O {[%emt 0:01:12]} a6 {[%emt 0:00:23]} 6. d4 {[%emt 0:00:50]} b5 {[%emt 0:00:12]} 7. Bb3 {[%emt 0:00:58]} Bb7 {[%emt 0:00:13]} 8. Nc3 {[%emt 0:00:20]} c5 {[%emt 0:02:59] [#]} 9. e4 $1 {[%emt 0:01:36][%mdl 4] is now more promising than 9.Qe2. D27: Queen's Gambit Accepted: Classical main line: 7 e4!? and 7 a4.} cxd4 {[%emt 0:00:42]} 10. Nxd4 {[%emt 0:01:23]} Nbd7 {[%emt 0:03:57][%cal Of8c5]} 11. Be3 {[%emt 0:02:06][%cal Ob3e6]} b4 {[%emt 0:10:49]} 12. Na4 {[%emt 0:03:46]} Qb8 {[%emt 0:02:27]} (12... Bxe4 $11 {remains equal.} 13. Re1 Be7) 13. Rc1 {[%emt 0:35:11] White is more active.} (13. f3 $142 $1) 13... Bd6 {[%emt 0:07:57]} 14. Nc6 $146 {[%emt 0:08:13]} (14. f4 {simplifies} Bxe4 15. Nc6 Bxc6 16. Rxc6 Be7 17. Nb6) (14. f4 Nxe4 15. Nc6 Bxc6 16. Rxc6 O-O 17. Qd4 Ndf6 18. Bc2 e5 19. Qb6 exf4 20. Bd4 {0-1 Kojima,S (2306)-Yamada,K (2172) Asian Games Hangzhou rapid 2023 (7)}) 14... Bxh2+ {[%emt 0:01:14]} 15. Kh1 {[%emt 0:00:02]} Qd6 {[%emt 0:08:56] [#] A sharp opening} (15... Bxc6 $11 16. Rxc6 Bf4) 16. f3 $2 {[%emt 0:13:40]} a5 {[%emt 0:12:46]} (16... Qg3 $11 17. Qe1 (17. Nxb4 $2 Qh4 $19) 17... Bxc6 18. Rxc6 O-O) 17. Qxd6 $14 {[%emt 0:06:47]} Bxd6 {[%emt 0:00:11]} 18. Rfd1 {[%emt 0:00:08]} Bg3 {[%emt 0:00:31]} 19. Na7 {[%emt 0:09:48][%cal Oa4c5]} (19. Nd4 $5) 19... O-O {[%emt 0:10:12]} 20. Nc5 {[%emt 0:01:25]} (20. Nb5 $11) 20... Nxc5 $17 {[%emt 0:00:34]} 21. Bxc5 {[%emt 0:00:05]} Rfb8 {[%emt 0:02:16]} 22. Ba4 {[%emt 0:01:58]} Bf4 {[%emt 0:00:25]} 23. Rb1 {[%emt 0:02:43]} ({White should play} 23. Rc4 $15) 23... h5 {[%emt 0:01:55]} 24. a3 {[%emt 0:01:46]} Kh7 {[%emt 0:10:25]} 25. axb4 {[%emt 0:00:15]} axb4 {[%emt 0:00:02]} 26. b3 {[%emt 0:00:23]} h4 {[%emt 0:02:45]} 27. Kg1 {[%emt 0:00:50]} Rd8 {[%emt 0:02:15]} 28. Bf2 {[%emt 0:04:36]} g5 {[%emt 0:01:14]} 29. Bb5 {[%emt 0:01:11]} Kg6 {[%emt 0:04:10]} 30. Nc6 {[%emt 0:01:38]} Bxc6 {[%emt 0:00:37]} 31. Bxc6 {[%emt 0:00:03]} Rxd1+ {[%emt 0:00:12]} 32. Rxd1 {[%emt 0:00:01]} Ra2 {[%emt 0:00:47]} 33. Bb5 {[%emt 0:00:30]} Nh5 {[%emt 0:01:33][%cal Of4h2]} 34. Bd3 {[%emt 0:01:08]} (34. Bd4 {keeps fighting.}) 34... Be5 {[%emt 0:01:22][%cal Oe5h2]} 35. Be3 {[%emt 0:00:40]} f6 {[%emt 0:02:45]} (35... g4 $19 36. fxg4 Nf6) 36. Bc4 {[%emt 0:00:25]} f5 {[%emt 0:02:33]} (36... Bf4 37. Bc5 Rc2) 37. Bxe6 {[%emt 0:00:20]} fxe4 {[%emt 0:00:05]} 38. fxe4 {[%emt 0:00:15]} Re2 {[%emt 0:01:56]} (38... Nf4 $17 39. Bf5+ Kf6) 39. Bf5+ {[%emt 0:00:36] A strong pair of Bishops.} Kf6 {[%emt 0:00:09]} 40. Rd3 {[%emt 0:02:05][%mdl 8192]} (40. Bb6 $11 Nf4 41. Kf1) 40... Re1+ $2 {[%emt 0:00:52]} ({Black should try} 40... Rxe3 $19 41. Rxe3 Bd4) 41. Kf2 $11 {[%emt 0:30:14] The position is equal.} Bg3+ {[%emt 0:30:37]} 42. Kf3 {[%emt 0:00:18] And now Bd2 would win.} Nf4 {[%emt 0:02:56]} 43. Rd6+ {[%emt 0:00:00] Weighted Error Value: White=0.56/Black=0.46  Loses game:     	White=1     	Black=1      Missed win:     	White=2     	Black=1      Mistake:       	White=4     	Black=5      Inaccurate:     	White=2     	Black=1      OK:         	White=6     	Black=12     Best:        	---       	Black=3} 1/2-1/2

[Event "FIDE WSTC Open 50 2025"]
[Site "Prague"]
[Date "2025.02.25"]
[Round "8.31"]
[White "Roobol, Martin"]
[Black "Barron, Michael"]
[Result "0-1"]
[Annotator "TA"]
[ECO "A80"]
[WhiteElo "2242"]
[BlackElo "2049"]
[PlyCount "97"]
[EventDate "2025.02.17"]
[EventType "team-tourn"]
[EventCountry "CZE"]
[SourceTitle "playchess.com"]
[Source "ChessBase"]
[SourceQuality "1"]
[TimeControl "40/5400+30:1800+30"]

{[%evp 9,97,33,32,32,49,38,159,162,156,164,158,104,135,123,143,66,102,91,60,66,158,75,97,54,66,55,66,35,49,37,29,0,0,0,53,56,37,0,0,0,0,0,0,-11,-18,-19,-4,-7,-8,-4,-12,-15,-9,-44,-53,-121,-123,-116,-118,-142,-49,-52,-38,-242,-247,-178,-239,-323,-244,-7351,-6545,-6544,-6544,-6544,-6468,-6134,-29939,-6195,-6211,-6223,-6127,-5065,-131,-29980,-29981,-29981,-29982,-29984,-29985,-29987]} 1. d4 {[%emt 0:00:03]} f5 {[%emt 0:00:10]} 2. Bg5 {[%emt 0:00:07][%cal Bc1g5,Bg5h4,Bh4g3][%mdl 32]} h6 {[%emt 0:00:24]} 3. Bh4 {[%emt 0:00:08]} g5 {[%emt 0:00:21]} 4. Bg3 {[%emt 0:00:05]} Bg7 {[%emt 0:00:12]} 5. e3 {[%emt 0:00:06]} c5 {[%emt 0:00:25]} 6. c3 {[%emt 0:01:33] A80: Dutch Defence: Unusual White second moves.} Qb6 {[%emt 0:00:46]} 7. Na3 {[%emt 0:02:57][%cal Bb1a3,Ba3b5,Bb5d4][%mdl 32]} d5 {[%emt 0:02:31] Prevents Nc4.} (7... Nf6 $14) 8. Nb5 $1 $16 {[%emt 0:02:59] White is clearly better.} Na6 {[%emt 0:01:42] Against Nc7+} 9. dxc5 {[%emt 0:05:29]} Qxc5 {[%emt 0:00:46]} 10. Nf3 $146 {[%emt 0:09:04]} (10. Qh5+ $142 Kf8 11. Nf3) (10. Qh5+ Kf8 11. Nf3 Nf6 12. Qg6 Bd7 13. Nbd4 Qb6 14. Bxa6 e6 15. Bd3 f4 16. Bb5 Bxb5 17. Nxb5 fxg3 {1-0 Gurbanov,A (2302)-Lipilin,I (2198) IPCA Wch 21st 2022 (9)}) 10... Bd7 {[%emt 0:03:44]} 11. Nbd4 {[%emt 0:03:50]} Qb6 {[%emt 0:09:12]} 12. Bd3 {[%emt 0:08:28]} (12. Bxa6 $16 Qxa6 13. Ne5 Bxe5 14. Qh5+ (14. Bxe5 Nf6 $16) 14... Kf8 15. Bxe5) 12... e6 $1 $14 {[%emt 0:01:10]} 13. Ne5 {[%emt 0:01:08]} Nf6 {[%emt 0:02:57] Wards off Qh5+} 14. Nxd7 {[%emt 0:13:11]} Kxd7 {[%emt 0:01:15]} (14... Nxd7 $14 15. O-O O-O) 15. O-O {[%emt 0:09:37]} ({White should try} 15. a4) 15... Nc5 $16 {[%emt 0:00:55][%cal Oc5d3] A sharp opening} 16. Bb5+ {[%emt 0:02:25]} Ke7 {[%emt 0:01:02]} 17. a4 {[%emt 0:00:05][%cal Ba2a4,Ba4a5][%mdl 32]} a6 {[%emt 0:03:48]} 18. a5 {[%emt 0:00:04][%csl Od4] Strong Square White (d4)} Qd8 {[%emt 0:01:18]} 19. Be2 {[%emt 0:01:06] This pair of bishops is nice.} Nfe4 {[%emt 0:03:39][%cal Oh6h5]} 20. c4 {[%emt 0:00:50]} (20. Bh5 {looks sharper.} Rc8 21. Qc2 Rf8 22. Rfd1) 20... Rc8 {[%emt 0:26:04]} 21. Rc1 {[%emt 0:06:00]} Nxg3 {[%emt 0:03:18]} ({Better is} 21... Qxa5 $11 22. cxd5 Qd2) 22. hxg3 $14 {[%emt 0:00:42]} Ne4 {[%emt 0:00:21]} 23. Qb3 {[%emt 0:08:54]} Bxd4 {[%emt 0:04:21]} 24. exd4 {[%emt 0:00:17]} (24. Qxb7+ Rc7 25. Qxa6 Bxb2 $19) 24... Qxa5 {[%emt 0:00:21] Active counter play!} 25. Qxb7+ {[%emt 0:08:05]} Rc7 {[%emt 0:00:12]} 26. b4 {[%emt 0:00:06]} Rxb7 {[%emt 0:00:49]} 27. bxa5 {[%emt 0:00:06]} Nd2 {[%emt 0:00:30]} 28. Rfe1 {[%emt 0:00:58] and cxd5 would now be decisive} Nxc4 {[%emt 0:00:33]} 29. Bxc4 {[%emt 0:00:04]} dxc4 $11 {[%emt 0:00:10][%mdl 4096] Endgame KRR-KRR. Black is a pawn up.} 30. d5 {[%emt 0:02:57]} Kd6 {[%emt 0:00:28]} 31. dxe6 {[%emt 0:03:23]} Rc7 {[%emt 0:00:31]} 32. Rcd1+ {[%emt 0:02:09]} (32. f4 $15) 32... Ke7 $17 {[%emt 0:06:46]} 33. Rd5 {[%emt 0:01:41]} Rf8 {[%emt 0:00:17]} 34. Red1 {[%emt 0:03:10] [#]} Rf6 {[%emt 0:02:13]} (34... Kxe6 $6 35. Rd6+ Kf7 36. Rxa6 $11) (34... Rc6 $1 $17 {[%cal Oc4c3] Hoping for ...c3!.} 35. Re1 Rc7 (35... Rxe6 36. Rxe6+ Kxe6 37. Rc5 $11)) 35. Rd7+ {[%emt 0:00:30]} Rxd7 $1 {[%emt 0:00:11]} (35... Kxe6 $2 36. Rxc7 f4 37. Rc6+ (37. Rxc4 Kf5 $18) 37... Ke7 38. Rxf6 (38. Rxc4 Rf5 $18) 38... Kxf6 39. gxf4 (39. Rd6+ Ke5 $18) 39... gxf4 40. Rc1 $18) 36. exd7 $15 {[%emt 0:00:04] KR-KR} ({Only move:} 36. Rxd7+ $15 Kxe6 37. Rd4) 36... Kd8 $19 {[%emt 0:00:19]} 37. Kf1 {[%emt 0:03:24]} c3 {[%emt 0:00:28]} 38. Ke2 {[%emt 0:00:06]} Re6+ {[%emt 0:00:31]} 39. Kd3 $2 {[%emt 0:00:06]} (39. Kf1) 39... Rd6+ {[%emt 0:00:20]} (39... Kxd7 40. Kxc3+ Ke7 41. Rd5 $11) 40. Kc2 {[%emt 0:00:03]} Rxd1 {[%emt 0:00:10]} ({Inferior is} 40... Rxd7 41. Rf1 $16 (41. Rxd7+ Kxd7 42. Kxc3 Kc7 $11)) 41. Kxd1 {[%emt 0:30:03]} Kxd7 {[%emt 0:30:12] KP-KP. Black is a pawn up.} 42. Kc2 {[%emt 0:00:04]} Kc6 {[%emt 0:00:08]} 43. Kxc3 {[%emt 0:00:03]} Kb5 {[%emt 0:00:09]} 44. f4 {[%emt 0:00:24]} gxf4 {[%emt 0:01:35]} (44... Kxa5 45. g4 Kb5 (45... fxg4 $2 {loses.} 46. f5 $18) (45... gxf4 $2 46. gxf5 Kb6 47. f6 $18) 46. gxf5 $18) 45. gxf4 {[%emt 0:00:07] [#]} Kxa5 $2 {[%emt 0:00:08]} (45... Kc5 $1 $19 46. Kd3 h5) 46. Kd4 $2 {[%emt 0:00:05][%mdl 8192] This costs White the game.} (46. g4 $17 fxg4 47. f5) 46... Kb5 {[%emt 0:00:19] Black mates.} 47. Ke5 {[%emt 0:00:03]} a5 {[%emt 0:00:22]} 48. g4 {[%emt 0:00:57]} a4 {[%emt 0:00:28]} 49. Kd4 {Weighted Error Value: White=0.45/Black=0.21 (precise)   Loses game:     	White=1     	---        Mistake:       	White=5     	Black=4      Inaccurate:     	White=6     	---        OK:         	White=12    	Black=12     Best:        	White=1     	Black=11     Strong:       	White=1     	Black=2} 0-1

[Event "FIDE WSTC Open 50 2025"]
[Site "Prague"]
[Date "2025.02.25"]
[Round "8.32"]
[White "Findlay, Ian T."]
[Black "Kindt, Manfred"]
[Result "1-0"]
[Annotator "TA"]
[ECO "C68"]
[WhiteElo "2089"]
[BlackElo "2049"]
[PlyCount "81"]
[EventDate "2025.02.17"]
[EventType "team-tourn"]
[EventCountry "CZE"]
[SourceTitle "playchess.com"]
[Source "ChessBase"]
[SourceQuality "1"]
[TimeControl "40/5400+30:1800+30"]

{[%evp 9,81,28,25,35,30,35,31,0,-8,0,-6,-10,-9,-56,-64,-72,-65,-77,-64,-31,-33,-74,-62,-66,-38,-43,-33,-52,0,-21,-29,-25,-1,-39,68,56,116,118,373,354,352,311,335,261,285,272,398,396,501,450,455,429,489,488,495,492,489,487,606,607,589,576,700,515,516,509,511,494,556,573,572,545,658,654]} 1. e4 {[%emt 0:00:02]} e5 {[%emt 0:00:07]} 2. Nf3 {[%emt 0:00:06]} Nc6 {[%emt 0:00:10]} 3. Bb5 {[%emt 0:00:07]} a6 {[%emt 0:00:07]} 4. Bxc6 {[%emt 0:00:06]} dxc6 {[%emt 0:00:08]} 5. O-O {[%emt 0:00:06]} Qf6 {[%emt 0:00:16]} 6. d4 {[%emt 0:01:34] C68: Ruy Lopez: Exchange Variation, sidelines.} exd4 {[%emt 0:00:16]} 7. Bg5 {[%emt 0:00:23]} Qd6 {[%emt 0:00:12]} 8. Qxd4 {[%emt 0:00:41] White is slightly better.} Qxd4 {[%emt 0:00:10]} 9. Nxd4 {[%emt 0:00:06]} Bd7 {[%emt 0:00:23]} 10. Nd2 {[%emt 0:01:46]} Ne7 {[%emt 0:00:54]} 11. N2b3 {[%emt 0:07:22]} (11. Ne2 $11) 11... b6 $15 {[%emt 0:05:56]} 12. a4 $146 {[%emt 0:02:45]} ({Predecessor:} 12. Rfe1 O-O-O 13. Rad1 Re8 14. f3 c5 15. Ne2 Ng6 16. Nd2 f6 17. Be3 Ne5 18. Nc3 {½-½ Martinez Duany,L (2526)-Ladron de Guevara Pinto,P (2431) Iberoamerican-ch 7th 2019 (3)}) 12... c5 {[%emt 0:09:06]} 13. Ne2 {[%emt 0:01:17]} f6 {[%emt 0:19:44]} 14. Bf4 {[%emt 0:03:14]} O-O-O 15. Nc3 {[%emt 0:08:52]} Be6 {[%emt 0:04:33]} 16. a5 {[%emt 0:03:02] [#]} Ng6 {[%emt 0:17:17]} 17. Be3 {[%emt 0:07:50] and axb6 should not be overlooked} Kb7 18. f4 {[%emt 0:00:14]} f5 {[%emt 0:07:48]} (18... Bd6 $15) 19. Nd2 {[%emt 0:17:56][%cal Og2g4,Bb3d2,Bd2f3,Bf3g5][%mdl 32]} Ne7 $1 {[%emt 0:03:54]} 20. Nf3 g6 {[%emt 0:09:30]} 21. Rfe1 {[%emt 0:05:27]} Bg7 {[%emt 0:03:17]} ({Black should play} 21... Nc6 $15) 22. axb6 $14 {[%emt 0:00:47][%cal Ba5b6,Bb6c7][%mdl 32]} Bxc3 {[%emt 0:06:29]} (22... cxb6 $14 23. Bxc5 Nc6 (23... bxc5 24. exf5 Bxf5 25. Rxe7+ Rd7 26. Re2 $16)) 23. bxc7 $16 {[%emt 0:06:24][%csl Oc7] White has a strong passed pawn} Rde8 {[%emt 0:00:39][%mdl 8192] [#] A mistake that costs the game.} (23... Bxe1 $16 {was worth a try.} 24. cxd8=N+ (24. cxd8=R Rxd8 25. Rxe1 fxe4 $18) 24... Rxd8) 24. bxc3 $18 {[%emt 0:00:13]} fxe4 {[%emt 0:02:15] Black is weak on the dark squares} 25. Ng5 {[%emt 0:00:56]} ({Don't take} 25. Bxc5 exf3 26. Rxe6 Nd5 $18) 25... Bc4 {[%emt 0:04:56]} 26. Nxe4 {[%emt 0:01:33]} Nf5 {[%emt 0:01:47][%cal Be7f5,Bf5h4,Bh4g2][%mdl 32] Repels Nd6+} 27. Bxc5 {[%emt 0:02:35]} Kxc7 {[%emt 0:00:22]} (27... Re6 $142 28. Nd2 Rc6) 28. g4 {[%emt 0:02:18]} Nh4 {[%emt 0:01:21]} 29. Kf2 {[%emt 0:00:12] White is clearly winning. Prevents Nf3} h5 {[%emt 0:01:11]} 30. h3 {[%emt 0:00:17][%cal Bh2h3,Bh3g4,Bg4g5][%mdl 32]} hxg4 {[%emt 0:00:23]} 31. hxg4 {[%emt 0:00:05]} Kc6 {[%emt 0:00:39]} 32. Bd4 {[%emt 0:00:34] Dodges Ng2} Rhf8 {[%emt 0:01:48]} 33. Kg3 {[%emt 0:00:53]} Ng2 {[%emt 0:00:40]} 34. Kxg2 {[%emt 0:00:46]} Rxf4 {[%emt 0:00:01]} 35. Nf6 {[%emt 0:03:30]} Rf8 {[%emt 0:00:45]} 36. g5 {[%emt 0:00:28]} Rf5 {[%emt 0:00:15]} 37. Re5 {[%emt 0:00:28]} Rxe5 {[%emt 0:00:13]} 38. Bxe5 {[%emt 0:00:08]} Ra8 {[%emt 0:00:58]} 39. Ra4 {[%emt 0:01:49]} Bb5 {[%emt 0:00:26]} 40. Rd4 {[%emt 0:00:16]} a5 {[%emt 0:00:32]} 41. c4 {[%emt 0:31:26] Weighted Error Value: White=0.21 (precise) /Black=0.45  Loses game:     	---       	Black=1      Mistake:       	White=1     	Black=4      Inaccurate:     	White=3     	Black=1      OK:         	White=17    	Black=12     Best:        	White=1     	Black=1      Strong:       	---       	Black=1} 1-0